bitfinex/quotes_BTCUSD_20251015
["timestamp","ask_amount","ask_price","bid_price","bid_amount"]
[1760536780244,0.51919541,111610.0,111600.0,0.20649012]
[1760536780463,0.51919541,111610.0,111600.0,0.38570158]
[1760536780664,0.51919541,111610.0,111600.0,0.20649012]
[1760536781093,0.51919541,111610.0,111600.0,0.09069012]
[1760536781332,0.51919541,111610.0,111600.0,0.20649012]
[1760536781755,0.51919541,111610.0,111600.0,0.09069012]
[1760536782387,0.51919541,111610.0,111600.0,0.20649012]
[1760536782822,0.51919541,111610.0,111600.0,0.1168]
[1760536783021,0.51919541,111610.0,111600.0,0.001]
[1760536783239,0.55537769,111610.0,111600.0,0.001]
[1760536785510,0.55537769,111610.0,111570.0,0.65997407]
[1760536785511,0.51924359,111580.0,111570.0,0.65997407]
[1760536785723,0.51924359,111580.0,111570.0,0.86542419]
[1760536785941,0.34,111580.0,111570.0,0.79367209]
[1760536786161,0.51924359,111580.0,111570.0,0.79367209]
[1760536786778,0.51924359,111580.0,111570.0,0.79417293]
[1760536786987,0.51924359,111580.0,111570.0,0.79517293]
[1760536787425,0.51924359,111580.0,111570.0,0.67941293]
[1760536787644,0.51924359,111580.0,111570.0,0.79517293]
[1760536788066,0.51924359,111580.0,111570.0,0.79617293]
[1760536789268,0.51924359,111580.0,111570.0,0.27145061]
[1760536789475,0.51924359,111580.0,111570.0,0.38721061]
[1760536789685,0.51924359,111580.0,111570.0,0.78721061]
[1760536789890,0.51924359,111580.0,111570.0,0.67145061]
[1760536790090,0.51924359,111580.0,111570.0,0.78721061]
[1760536791037,0.51924359,111580.0,111570.0,0.67145061]
[1760536791339,0.51924359,111580.0,111570.0,0.78721061]
[1760536792244,0.51924359,111580.0,111570.0,0.67145061]
[1760536792449,0.51924359,111580.0,111570.0,0.78721061]
[1760536793051,0.51924359,111580.0,111570.0,0.67145061]
[1760536793311,0.51924359,111580.0,111570.0,0.78721061]
[1760536794135,0.51924359,111580.0,111570.0,0.78717061]
[1760536797649,0.34,111580.0,111570.0,0.78717061]
[1760536797857,0.51922752,111590.0,111580.0,0.17922955]
[1760536798067,0.34,111590.0,111580.0,0.38463967]
[1760536798204,0.51922752,111590.0,111580.0,0.08969012]
[1760536798422,0.51922752,111590.0,111580.0,0.39987398]
[1760536798619,0.51922752,111590.0,111580.0,0.38465371]
[1760536798823,0.51922752,111590.0,111580.0,0.08969012]
[1760536799060,0.51922752,111590.0,111580.0,0.22022381]
[1760536799258,0.51922752,111590.0,111580.0,0.09069012]
[1760536799646,0.51922752,111590.0,111580.0,0.20641012]
[1760536800024,0.51922752,111590.0,111580.0,0.09069012]
[1760536800342,0.34,111590.0,111580.0,0.10430567]
[1760536800560,0.34,111590.0,111580.0,0.39926926]
[1760536800561,0.51922752,111590.0,111580.0,0.39926926]
[1760536800760,0.34,111590.0,111580.0,0.38565371]
[1760536800990,0.51922752,111590.0,111580.0,0.26993371]
[1760536801332,0.18813831,111620.0,111600.0,0.17921146]
[1760536801550,0.17919541,111610.0,111600.0,0.57921146]
[1760536801770,0.17919541,111610.0,111600.0,0.78458158]
[1760536802194,0.17919541,111610.0,111600.0,0.48969012]
[1760536802397,0.51919541,111610.0,111600.0,0.60537012]
[1760536802603,0.17919541,111610.0,111600.0,0.78458158]
[1760536803009,0.51919541,111610.0,111600.0,0.60537012]
[1760536803230,0.51919541,111610.0,111600.0,0.49069012]
[1760536803474,0.51919541,111610.0,111600.0,0.60637012]
[1760536803690,0.51919541,111610.0,111600.0,0.49069012]
[1760536803904,0.51919541,111610.0,111600.0,0.001]
[1760536804336,0.53225806,111610.0,111600.0,1e-08]
[1760536804549,0.55920445,111610.0,111600.0,1e-08]
[1760536804760,0.17924359,111580.0,111570.0,0.00050084]
[1760536804968,0.17924359,111580.0,111570.0,0.09019096]
[1760536805183,0.18819961,111600.0,111570.0,0.09019096]
[1760536805397,0.17922752,111590.0,111580.0,0.10552577]
[1760536805618,0.17922752,111590.0,111580.0,0.20537012]
[1760536805835,0.17922752,111590.0,111580.0,0.08969012]
[1760536806065,0.18819961,111600.0,111580.0,0.40029235]
[1760536806319,0.17919541,111610.0,111600.0,0.17921146]
[1760536806576,0.17917935,111620.0,111610.0,0.17919501]
[1760536806799,0.51917935,111620.0,111610.0,0.08969012]
[1760536807012,0.51917935,111620.0,111610.0,0.60537012]
[1760536807225,0.00058384,111630.0,111620.0,0.17917935]
[1760536807447,0.00058384,111630.0,111620.0,0.26886947]
[1760536807893,0.00067336,111630.0,111620.0,0.26886947]
[1760536808119,0.00067336,111630.0,111620.0,0.38450947]
[1760536808551,0.00067336,111630.0,111620.0,0.26886947]
[1760536808774,0.00067336,111630.0,111620.0,0.26986947]
[1760536808985,0.00067336,111630.0,111620.0,0.38750947]
[1760536809241,0.00067336,111630.0,111620.0,0.38550947]
[1760536809462,0.00067336,111630.0,111620.0,6.491491]
[1760536809661,0.0717521,111660.0,111650.0,0.17913121]
[1760536809871,0.07184164,111660.0,111650.0,0.38446133]
[1760536810099,8.954e-05,111660.0,111650.0,0.78446133]
[1760536810960,0.17920471,111660.0,111650.0,0.48969012]
[1760536811177,0.17920471,111660.0,111650.0,0.49169012]
[1760536811650,0.51920471,111660.0,111650.0,0.49169012]
[1760536811887,0.51920471,111660.0,111650.0,0.5176]
[1760536812107,0.51920471,111660.0,111650.0,0.402]
[1760536812329,0.51920471,111660.0,111610.0,0.0717521]
[1760536812548,0.1791633,111630.0,111620.0,0.08969012]
[1760536812764,0.17916878,111650.0,111630.0,0.1791633]
[1760536812981,0.17913121,111650.0,111640.0,0.28516152]
[1760536813195,0.18816046,111660.0,111650.0,0.18013121]
[1760536813196,0.17920471,111660.0,111650.0,0.18013121]
[1760536813407,0.17920471,111660.0,111650.0,0.38542133]
[1760536814050,8.954e-05,111660.0,111650.0,0.38542133]
[1760536814269,8.954e-05,111660.0,111650.0,0.26982133]
[1760536814950,8.954e-05,111660.0,111650.0,0.78542133]
[1760536815174,8.954e-05,111660.0,111650.0,0.66982133]
[1760536815387,0.00184049,111660.0,111650.0,0.66982133]
[1760536815658,0.00184049,111660.0,111650.0,1.89036286]
[1760536815881,0.00184049,111660.0,111650.0,1.77380286]
[1760536816108,0.00184049,111660.0,111650.0,1.89036286]
[1760536816336,0.05105957,111690.0,111680.0,0.17908309]
[1760536816565,0.05105957,111690.0,111680.0,0.38433321]
[1760536817016,0.05105957,111690.0,111680.0,0.78433321]
[1760536817688,0.05105957,111690.0,111680.0,0.78533321]
[1760536817909,0.05105957,111690.0,111680.0,0.66977321]
[1760536818364,0.05105957,111690.0,111680.0,0.78533321]
[1760536818811,0.05105957,111690.0,111680.0,1.39757246]
[1760536819049,0.05105957,111690.0,111680.0,0.66877321]
[1760536819271,0.05105957,111690.0,111680.0,0.66977321]
[1760536819759,0.05105957,111690.0,111680.0,0.78529321]
[1760536819968,0.05105957,111690.0,111680.0,0.78729321]
[1760536820382,0.05105957,111690.0,111680.0,0.67177321]
[1760536820587,0.05105957,111690.0,111680.0,0.78729321]
[1760536820802,0.05105957,111690.0,111680.0,0.67177321]
[1760536821009,0.05105957,111690.0,111680.0,0.78729321]
[1760536822046,0.05280981,111690.0,111680.0,0.78729321]
[1760536822258,0.05280981,111690.0,111680.0,0.67177321]
[1760536822465,0.05280981,111690.0,111680.0,0.78729321]
[1760536822674,0.05280981,111690.0,111680.0,0.78725321]
[1760536823301,1e-08,111690.0,111680.0,1.55860933]
[1760536823506,0.07807218,111700.0,111690.0,0.21524934]
[1760536823716,0.0782065,111700.0,111690.0,1.37273871]
[1760536823955,0.0548848,111710.0,111700.0,0.2152333]
[1760536824155,0.05538434,111710.0,111700.0,1.14820267]
[1760536824374,0.05538434,111710.0,111700.0,0.82777801]
[1760536824651,0.05538434,111710.0,111700.0,0.71229801]
[1760536824905,0.05538434,111710.0,111700.0,1.78009726]
[1760536825191,0.05669741,111720.0,111710.0,0.55521728]
[1760536825401,0.05669741,111720.0,111710.0,1.37270665]
[1760536825621,0.02981365,111720.0,111710.0,2.13265907]
[1760536825844,0.00292989,111720.0,111710.0,1.40485982]
[1760536826312,0.00292989,111720.0,111710.0,1.17256512]
[1760536826531,0.00292989,111720.0,111710.0,1.0953074]
[1760536826773,0.00292989,111720.0,111710.0,0.67072512]
[1760536827038,0.00292989,111720.0,111710.0,0.67172512]
[1760536827297,0.08411002,111730.0,111720.0,0.17901897]
[1760536827528,0.08793525,111750.0,111730.0,0.55518523]
[1760536827762,0.00802474,111750.0,111740.0,6.78972051]
[1760536828008,0.06474786,111760.0,111750.0,5.51897091]
[1760536828250,0.06474786,111760.0,111750.0,1.12023573]
[1760536828500,0.06474786,111760.0,111750.0,1.00479573]
[1760536828955,0.06474786,111760.0,111750.0,1.12023573]
[1760536829167,0.06474786,111760.0,111750.0,0.27066103]
[1760536829389,0.06474786,111760.0,111750.0,0.38606103]
[1760536829654,0.06882866,111760.0,111750.0,0.38406103]
[1760536829882,0.06882866,111760.0,111750.0,0.26866103]
[1760536830115,0.06882866,111760.0,111750.0,0.27266103]
[1760536830352,0.06882866,111760.0,111750.0,0.38806103]
[1760536830578,0.06882866,111760.0,111750.0,0.27066103]
[1760536830810,0.06882866,111760.0,111750.0,0.38606103]
[1760536831052,0.06882866,111760.0,111750.0,0.27066103]
[1760536831291,0.06882866,111760.0,111750.0,0.26866103]
[1760536831726,0.06882866,111760.0,111750.0,0.26966103]
[1760536831946,0.06882866,111760.0,111750.0,0.27166103]
[1760536832139,0.06882866,111760.0,111750.0,0.26866103]
[1760536832389,0.06882866,111760.0,111750.0,0.38606103]
[1760536832608,0.06882866,111760.0,111750.0,0.38702103]
[1760536832833,0.06882866,111760.0,111750.0,0.27166103]
[1760536833053,0.06882866,111760.0,111750.0,1.6994127]
[1760536833275,0.06882866,111760.0,111750.0,0.60866103]
[1760536833490,0.06882866,111760.0,111750.0,0.72602103]
[1760536833747,0.06882866,111760.0,111750.0,0.61066103]
[1760536834166,0.06882866,111760.0,111750.0,1.45382028]
[1760536834374,0.06882866,111760.0,111750.0,0.72602103]
[1760536834682,0.06882866,111760.0,111750.0,0.61166103]
[1760536834775,0.06882866,111760.0,111750.0,0.27166103]
[1760536834991,0.06882866,111760.0,111750.0,0.38402103]
[1760536835429,0.06882866,111760.0,111750.0,0.27366103]
[1760536835648,0.06882866,111760.0,111750.0,0.38602103]
[1760536836972,0.06882866,111760.0,111750.0,0.38702103]
[1760536837422,0.06882866,111760.0,111750.0,0.38698103]
[1760536837871,0.06882866,111760.0,111750.0,0.27166103]
[1760536838152,0.24778356,111760.0,111750.0,0.20801012]
[1760536838402,0.06882866,111760.0,111750.0,0.38698103]
[1760536838871,0.24778356,111760.0,111750.0,0.08969012]
[1760536839103,0.58778356,111760.0,111750.0,0.09069012]
[1760536839317,0.58778356,111760.0,111750.0,0.20601012]
[1760536839536,0.58778356,111760.0,111750.0,0.001]
[1760536839773,0.62396584,111760.0,111750.0,0.001]
[1760536840018,0.62396584,111760.0,111710.0,0.259738]
[1760536840019,0.17901713,111730.0,111710.0,0.259738]
[1760536840314,0.17901897,111720.0,111710.0,0.47184159]
[1760536840536,0.18076851,111720.0,111710.0,0.60509961]
[1760536840762,0.18076851,111720.0,111710.0,8.949e-05]
[1760536841443,0.18076851,111720.0,111710.0,0.08977961]
[1760536842634,0.18076851,111720.0,111710.0,0.09077961]
[1760536844942,0.18076851,111720.0,111710.0,0.08977961]
[1760536845175,0.00174954,111720.0,111710.0,0.38413461]
[1760536845391,0.00174954,111720.0,111710.0,0.26881461]
[1760536845815,0.00174954,111720.0,111710.0,0.78513461]
[1760536846037,0.00174954,111720.0,111710.0,0.78413461]
[1760536846276,0.00174954,111720.0,111710.0,0.66881461]
[1760536846519,0.00174954,111720.0,111710.0,0.78513461]
[1760536847175,0.00174954,111720.0,111710.0,0.66981461]
[1760536847629,0.00174954,111720.0,111710.0,0.78413461]
[1760536847845,0.00174954,111720.0,111710.0,0.78409461]
[1760536848061,0.00174954,111720.0,111710.0,1.00981461]
[1760536848276,0.00174954,111720.0,111710.0,1.01181461]
[1760536848486,0.00174954,111720.0,111710.0,1.12709461]
[1760536848714,0.00174954,111720.0,111710.0,1.01181461]
[1760536848931,0.00174954,111720.0,111710.0,1.01081461]
[1760536849152,0.00174954,111720.0,111710.0,0.66881461]
[1760536849375,0.00174954,111720.0,111710.0,0.78909461]
[1760536849593,0.18076851,111720.0,111710.0,0.67381461]
[1760536849810,0.00174954,111720.0,111710.0,0.78909461]
[1760536850020,0.18076851,111720.0,111710.0,0.78909461]
[1760536850294,0.00174954,111720.0,111710.0,0.67381461]
[1760536850736,0.18076851,111720.0,111710.0,0.66881461]
[1760536850956,0.00174954,111720.0,111710.0,0.78609461]
[1760536851166,0.00174954,111720.0,111710.0,0.67281461]
[1760536851380,0.18076851,111720.0,111710.0,0.67081461]
[1760536851610,0.00174954,111720.0,111710.0,0.67081461]
[1760536851827,0.00174954,111720.0,111710.0,0.67181461]
[1760536852456,0.00174954,111720.0,111710.0,0.66881461]
[1760536852671,0.00174954,111720.0,111710.0,0.67081461]
[1760536853320,0.00174954,111720.0,111710.0,0.78609461]
[1760536853529,0.00174954,111720.0,111710.0,0.67081461]
[1760536853947,0.00174954,111720.0,111710.0,0.66981461]
[1760536854164,0.00174954,111720.0,111710.0,1.1924692]
[1760536854374,0.00174954,111720.0,111710.0,1.0781892]
[1760536854798,0.00174954,111720.0,111710.0,1.1944692]
[1760536855009,0.00174954,111720.0,111710.0,1.0791892]
[1760536855222,0.00174954,111720.0,111710.0,1.1914692]
[1760536855435,0.00174954,111720.0,111710.0,1.1964692]
[1760536855881,0.00174954,111720.0,111710.0,1.0811892]
[1760536856091,0.00174954,111720.0,111710.0,1.1964692]
[1760536856773,0.00174954,111720.0,111710.0,1.1964292]
[1760536856985,0.00174954,111720.0,111710.0,0.67381461]
[1760536857198,0.00174954,111720.0,111710.0,0.78705461]
[1760536857407,0.00174954,111720.0,111710.0,0.66881461]
[1760536857658,0.00174954,111720.0,111710.0,0.67281461]
[1760536857866,0.00174954,111720.0,111710.0,0.78605461]
[1760536858087,0.00174954,111720.0,111710.0,0.66881461]
[1760536858495,0.00174954,111720.0,111710.0,0.67181461]
[1760536858914,0.00174954,111720.0,111710.0,0.78705461]
[1760536859119,0.00174954,111720.0,111710.0,0.67181461]
[1760536859355,0.00174954,111720.0,111710.0,0.78705461]
[1760536859553,0.3244026,111760.0,111740.0,0.17898693]
[1760536859766,0.17897091,111750.0,111730.0,0.17898848]
[1760536859974,0.17898693,111740.0,111730.0,0.17900295]
[1760536860218,0.17898693,111740.0,111730.0,0.20493012]
[1760536860427,0.18791945,111750.0,111730.0,0.26869307]
[1760536860870,0.24370536,111760.0,111740.0,0.38391705]
[1760536861077,0.17897091,111750.0,111740.0,0.08969012]
[1760536861294,0.17897091,111750.0,111740.0,0.48969012]
[1760536861761,0.17897091,111750.0,111740.0,0.60493012]
[1760536861997,0.17897091,111750.0,111740.0,0.48969012]
[1760536862430,0.17897091,111750.0,111740.0,0.60493012]
[1760536862642,0.17897091,111750.0,111740.0,0.48969012]
[1760536862863,0.17897091,111750.0,111740.0,0.60493012]
[1760536863286,0.17897091,111750.0,111740.0,0.48969012]
[1760536863519,0.17897091,111750.0,111740.0,0.60593012]
[1760536863723,0.17897091,111750.0,111740.0,0.49069012]
[1760536864396,0.17897091,111750.0,111740.0,0.48969012]
[1760536864648,0.17897091,111750.0,111740.0,0.60493012]
[1760536864863,0.17897091,111750.0,111740.0,0.49069012]
[1760536865289,0.18071975,111750.0,111740.0,0.78487705]
[1760536865540,0.18071975,111750.0,111740.0,0.66967705]
[1760536865764,0.00174884,111750.0,111740.0,0.78487705]
[1760536866002,0.00174884,111750.0,111740.0,0.66967705]
[1760536866220,0.00174884,111750.0,111740.0,0.78487705]
[1760536866441,0.00174884,111750.0,111740.0,1.13880695]
[1760536866656,0.00174884,111750.0,111740.0,6.47780695]
[1760536866874,0.00174884,111750.0,111740.0,6.12387705]
[1760536867093,0.00174884,111750.0,111740.0,6.59400695]
[1760536867313,0.00174884,111750.0,111740.0,6.00867705]
[1760536867525,0.00174884,111750.0,111740.0,1.01267705]
[1760536867746,0.00174884,111750.0,111740.0,0.78787705]
[1760536867978,0.00174884,111750.0,111740.0,0.78587705]
[1760536868215,0.00174884,111750.0,111740.0,0.67167705]
[1760536868460,0.00174884,111750.0,111740.0,0.67067705]
[1760536868684,0.00174884,111750.0,111740.0,0.78587705]
[1760536869130,0.00174884,111750.0,111740.0,0.67067705]
[1760536869408,0.00174884,111750.0,111740.0,0.78587705]
[1760536869648,0.00174884,111750.0,111740.0,0.66867705]
[1760536869863,0.00174884,111750.0,111740.0,0.78387705]
[1760536870106,0.00174884,111750.0,111740.0,0.78487705]
[1760536870355,0.00174884,111750.0,111740.0,0.66967705]
[1760536870599,0.00174884,111750.0,111740.0,6.47980695]
[1760536870819,0.00032983,111750.0,111740.0,6.12587705]
[1760536871037,0.00032983,111750.0,111740.0,6.12787705]
[1760536871250,0.00032983,111750.0,111740.0,6.59496695]
[1760536871497,0.00032983,111750.0,111740.0,6.47780695]
[1760536871710,0.00032983,111750.0,111740.0,5.72883705]
[1760536872171,0.00032983,111750.0,111740.0,6.12883705]
[1760536872441,0.00032983,111750.0,111740.0,6.01367705]
[1760536872664,0.00032983,111750.0,111740.0,1.12883705]
[1760536872872,0.00032983,111750.0,111740.0,1.01367705]
[1760536873336,0.00032983,111750.0,111740.0,1.01167705]
[1760536873560,0.00032983,111750.0,111740.0,1.05703705]
[1760536873772,0.00032983,111750.0,111740.0,1.06103705]
[1760536873990,0.00032983,111750.0,111740.0,1.17619705]
[1760536874201,0.00032983,111750.0,111740.0,1.05703705]
[1760536874414,0.00032983,111750.0,111740.0,1.17419705]
[1760536874846,0.24789684,111780.0,111760.0,0.1789549]
[1760536875066,0.24789684,111780.0,111770.0,0.26862901]
[1760536875276,0.24789684,111780.0,111770.0,0.38378901]
[1760536875526,0.24789684,111780.0,111770.0,0.20485012]
[1760536875782,0.24789684,111780.0,111770.0,0.08969012]
[1760536876006,0.24789684,111780.0,111770.0,0.26862901]
[1760536876227,0.24789684,111780.0,111770.0,0.08969012]
[1760536876451,0.24789684,111780.0,111770.0,0.20485012]
[1760536876915,0.58789684,111780.0,111770.0,0.08969012]
[1760536877398,0.58789684,111780.0,111770.0,0.20481012]
[1760536877642,0.62407912,111780.0,111770.0,0.001]
[1760536877877,0.17897091,111750.0,111740.0,0.4717521]
[1760536878104,0.17897091,111750.0,111740.0,0.56144222]
[1760536878328,0.17897091,111750.0,111740.0,0.60481012]
[1760536878796,0.17897091,111750.0,111740.0,0.48969012]
[1760536879086,0.17897091,111750.0,111740.0,0.60481012]
[1760536879384,0.17897091,111750.0,111740.0,0.66867705]
[1760536880210,0.24789684,111780.0,111770.0,0.17893889]
[1760536880429,0.17894052,111770.0,111760.0,0.26864502]
[1760536880635,0.18010604,111770.0,111760.0,0.26864502]
[1760536881553,0.00116552,111770.0,111760.0,0.26964502]
[1760536881770,0.18010441,111770.0,111760.0,0.26964502]
[1760536881990,0.18010441,111770.0,111760.0,0.38476502]
[1760536882433,0.00116552,111770.0,111760.0,0.38476502]
[1760536882656,0.00116552,111770.0,111760.0,0.26964502]
[1760536882883,0.18010441,111770.0,111760.0,0.38476502]
[1760536883101,0.18010441,111770.0,111760.0,0.20581012]
[1760536883315,0.18010441,111770.0,111760.0,0.38476502]
[1760536883535,0.18010441,111770.0,111760.0,0.38376502]
[1760536883778,0.18010441,111770.0,111760.0,0.09169012]
[1760536884012,0.18010441,111770.0,111760.0,0.08969012]
[1760536884224,0.18010441,111770.0,111760.0,0.49069012]
[1760536884858,0.52010441,111770.0,111760.0,0.001]
[1760536885722,0.52010441,111770.0,111760.0,0.11612]
[1760536885933,0.52010441,111770.0,111760.0,0.001]
[1760536886182,0.52010441,111770.0,111760.0,0.11612]
[1760536886399,0.52010441,111770.0,111760.0,0.11512]
[1760536886642,0.51897091,111750.0,111740.0,0.4]
[1760536886845,0.50441404,111750.0,111740.0,0.48969012]
[1760536887058,0.50441404,111750.0,111740.0,0.60481012]
[1760536887269,0.50441404,111750.0,111740.0,0.66867705]
[1760536887534,0.50441404,111750.0,111740.0,0.48969012]
[1760536888211,0.50441404,111750.0,111740.0,0.60577012]
[1760536888437,0.50441404,111750.0,111740.0,0.49069012]
[1760536889311,0.51904898,111720.0,111690.0,0.0717521]
[1760536889526,0.17903503,111710.0,111700.0,0.08969012]
[1760536889739,0.17903503,111710.0,111700.0,0.26874114]
[1760536889963,0.17903503,111710.0,111700.0,0.08969012]
[1760536890197,0.52799992,111720.0,111700.0,0.78382114]
[1760536890410,0.179035,111710.0,111700.0,0.66874114]
[1760536890640,0.179035,111710.0,111700.0,0.48969012]
[1760536890897,0.519035,111710.0,111700.0,0.49169012]
[1760536891102,0.519035,111710.0,111700.0,0.60777012]
[1760536891342,0.519035,111710.0,111700.0,0.49269012]
[1760536891797,0.519035,111710.0,111700.0,0.78682114]
[1760536892009,0.519035,111710.0,111700.0,0.49269012]
[1760536892229,0.519035,111710.0,111700.0,0.09269012]
[1760536892437,0.519035,111710.0,111700.0,0.09069012]
[1760536892646,0.519035,111710.0,111700.0,0.20577012]
[1760536892857,0.519035,111710.0,111700.0,0.20677012]
[1760536893062,0.519035,111710.0,111700.0,0.09169012]
[1760536893278,0.519035,111710.0,111700.0,0.20677012]
[1760536893493,0.519035,111710.0,111700.0,0.20477012]
[1760536893698,0.519035,111710.0,111700.0,0.11508]
[1760536893923,0.519035,111710.0,111700.0,0.001]
[1760536894136,0.55521728,111710.0,111700.0,0.001]
[1760536895211,0.519035,111710.0,111700.0,0.001]
[1760536895412,0.519035,111710.0,111690.0,8.949e-05]
[1760536895621,0.17905102,111700.0,111690.0,8.949e-05]
[1760536895831,0.17905102,111700.0,111690.0,0.11516949]
[1760536896048,0.17905102,111700.0,111690.0,8.949e-05]
[1760536896287,0.17905102,111700.0,111690.0,0.11516949]
[1760536896898,0.17905102,111700.0,111690.0,0.00108949]
[1760536897621,0.17905102,111700.0,111690.0,0.11616949]
[1760536897854,0.17905102,111700.0,111690.0,0.00108949]
[1760536898133,0.17905102,111700.0,111690.0,0.11616949]
[1760536898393,0.17905102,111700.0,111690.0,0.00108949]
[1760536899327,0.12799992,111720.0,111690.0,0.38492667]
[1760536899532,0.17904061,111710.0,111690.0,0.38492667]
[1760536899747,0.12799992,111720.0,111700.0,0.26874114]
[1760536899966,0.25974571,111730.0,111710.0,0.179035]
[1760536900173,0.17901897,111720.0,111710.0,0.26872512]
[1760536900454,0.17901897,111720.0,111710.0,0.08969012]
[1760536900655,0.17901897,111720.0,111710.0,0.20477012]
[1760536900863,0.17901897,111720.0,111710.0,0.26872512]
[1760536901073,0.17901897,111720.0,111710.0,0.38380512]
[1760536901284,0.17901897,111720.0,111710.0,0.08969012]
[1760536901511,0.17901897,111720.0,111710.0,0.20477012]
[1760536901944,0.17901897,111720.0,111710.0,0.08969012]
[1760536902135,0.17901897,111720.0,111710.0,0.48969012]
[1760536902379,0.17901897,111720.0,111710.0,0.4]
[1760536902824,0.17901897,111720.0,111710.0,0.51608]
[1760536903088,0.17901897,111720.0,111710.0,0.401]
[1760536903323,0.17901897,111720.0,111710.0,0.001]
[1760536903324,0.30961125,111720.0,111710.0,0.001]
[1760536903553,0.64961125,111720.0,111710.0,0.001]
[1760536904686,0.73930137,111720.0,111710.0,1e-08]
[1760536904924,0.17905102,111700.0,111690.0,0.05008949]
[1760536905630,0.17905102,111700.0,111690.0,0.16516949]
[1760536906059,0.17905102,111700.0,111690.0,0.05008949]
[1760536906491,0.17905102,111700.0,111690.0,0.16516949]
[1760536906962,0.17905102,111700.0,111690.0,0.05108949]
[1760536907451,0.5552333,111700.0,111690.0,0.05108949]
[1760536908372,0.5552333,111700.0,111690.0,0.05008949]
[1760536909440,0.64492342,111700.0,111690.0,0.05008949]
[1760536910105,0.51905102,111700.0,111690.0,0.05008949]
[1760536910314,0.51905102,111700.0,111690.0,0.16516949]
[1760536910555,0.17903778,111710.0,111690.0,0.22915655]
[1760536910802,0.18796991,111720.0,111700.0,0.17905102]
[1760536911023,0.179035,111710.0,111700.0,0.17905102]
[1760536911239,0.17905102,111700.0,111690.0,0.32780002]
[1760536911458,0.17905102,111700.0,111690.0,0.44288002]
[1760536911681,0.17905102,111700.0,111690.0,0.14077961]
[1760536911889,0.17905102,111700.0,111690.0,0.16516949]
[1760536912152,0.1790418,111710.0,111690.0,0.43392231]
[1760536912373,0.17905102,111700.0,111690.0,0.13977961]
[1760536912818,0.17905102,111700.0,111690.0,0.16612949]
[1760536913032,0.1790418,111710.0,111690.0,0.43488667]
[1760536913255,0.17905102,111700.0,111690.0,0.31884667]
[1760536913669,0.17905102,111700.0,111690.0,0.43388667]
[1760536914725,0.17905102,111700.0,111690.0,0.25481961]
[1760536914938,0.32919609,111700.0,111690.0,0.65581961]
[1760536915150,0.17905102,111700.0,111690.0,0.65581961]
[1760536915356,0.17905102,111700.0,111690.0,0.65481961]
[1760536915562,0.17905102,111700.0,111690.0,0.83488667]
[1760536915784,0.17905102,111700.0,111690.0,0.65581961]
[1760536916003,0.17905102,111700.0,111690.0,0.83488667]
[1760536917087,0.1790418,111710.0,111690.0,0.71984667]
[1760536917298,0.1790418,111710.0,111690.0,0.83488667]
[1760536918392,0.1790418,111710.0,111690.0,0.83388667]
[1760536918611,0.17905102,111700.0,111690.0,0.83388667]
[1760536918838,0.17905102,111700.0,111690.0,0.83488667]
[1760536919275,0.17905102,111700.0,111690.0,0.65581961]
[1760536919520,0.51905102,111700.0,111690.0,0.65481961]
[1760536919751,0.51905102,111700.0,111690.0,0.45008949]
[1760536919987,0.51905102,111700.0,111690.0,0.05108949]
[1760536919988,0.53576659,111700.0,111690.0,0.05108949]
[1760536920610,0.53576659,111700.0,111690.0,0.23015655]
[1760536920826,0.51905102,111700.0,111690.0,0.14077961]
[1760536921040,0.51905102,111700.0,111690.0,0.05108949]
[1760536921258,0.51905102,111700.0,111690.0,0.05008949]
[1760536921692,0.51905102,111700.0,111690.0,0.05108949]
[1760536922147,0.51905102,111700.0,111690.0,0.16612949]
[1760536922773,0.51905102,111700.0,111690.0,0.05008949]
[1760536922987,0.51905102,111700.0,111690.0,0.16512949]
[1760536923216,0.51905102,111700.0,111690.0,0.16508949]
[1760536923451,0.51905102,111700.0,111690.0,0.05008949]
[1760536923880,0.51905102,111700.0,111690.0,0.16508949]
[1760536924093,0.51905102,111700.0,111690.0,0.05008949]
[1760536924317,0.18796991,111720.0,111690.0,0.31884667]
[1760536924559,0.179035,111710.0,111700.0,0.17905102]
[1760536924761,0.18796991,111720.0,111700.0,0.26874114]
[1760536924975,0.18796991,111720.0,111710.0,0.294035]
[1760536925191,0.18796991,111720.0,111700.0,0.26874114]
[1760536925430,0.18796991,111720.0,111710.0,0.115]
[1760536925854,0.179035,111710.0,111700.0,0.26874114]
[1760536926109,0.27748521,111740.0,111700.0,0.39269369]
[1760536926339,0.01674113,111740.0,111730.0,0.17900295]
[1760536926542,0.17898693,111740.0,111730.0,0.20469012]
[1760536926754,0.17898693,111740.0,111730.0,0.38369307]
[1760536927001,0.17898693,111740.0,111730.0,0.26869307]
[1760536927212,0.17898693,111740.0,111730.0,0.38369307]
[1760536927423,0.17898693,111740.0,111730.0,0.20469012]
[1760536927632,0.17898693,111740.0,111730.0,0.38378256]
[1760536928060,0.17898693,111740.0,111730.0,8.949e-05]
[1760536928712,0.17898693,111740.0,111730.0,0.00108949]
[1760536929581,0.51898693,111740.0,111730.0,8.949e-05]
[1760536930233,0.51898693,111740.0,111730.0,0.11508949]
[1760536930669,0.55516921,111740.0,111730.0,0.11508949]
[1760536930918,0.55516921,111740.0,111730.0,8.949e-05]
[1760536931602,0.64485933,111740.0,111730.0,8.949e-05]
[1760536932059,0.55516921,111740.0,111730.0,8.949e-05]
[1760536933438,0.51898693,111740.0,111730.0,8.949e-05]
[1760536933696,0.51898693,111740.0,111730.0,0.11504949]
[1760536933904,0.51898693,111740.0,111730.0,8.949e-05]
[1760536934132,0.51898693,111740.0,111730.0,0.11504949]
[1760536934577,0.51898693,111740.0,111730.0,0.11604949]
[1760536934801,0.51898693,111740.0,111730.0,0.00108949]
[1760536935030,0.64485933,111740.0,111730.0,0.00108949]
[1760536935481,0.64485933,111740.0,111730.0,8.949e-05]
[1760536935937,0.51898693,111740.0,111730.0,8.949e-05]
[1760536936859,0.55516921,111740.0,111730.0,8.949e-05]
[1760536938368,0.64485933,111740.0,111730.0,8.949e-05]
[1760536939441,0.55516921,111740.0,111730.0,8.949e-05]
[1760536939871,0.64485933,111740.0,111730.0,8.949e-05]
[1760536940743,0.21516921,111740.0,111730.0,8.949e-05]
[1760536940985,0.17898693,111740.0,111730.0,8.949e-05]
[1760536941249,0.17898693,111740.0,111730.0,0.11504949]
[1760536941460,0.17898693,111740.0,111730.0,8.949e-05]
[1760536941892,0.51898693,111740.0,111730.0,8.949e-05]
[1760536942103,0.51898693,111740.0,111730.0,0.11600949]
[1760536942319,0.51898693,111740.0,111730.0,0.00108949]
[1760536942563,0.51898693,111740.0,111730.0,0.11600949]
[1760536943632,0.51898693,111740.0,111730.0,0.00108949]
[1760536943859,0.51898693,111740.0,111730.0,0.11600949]
[1760536944080,0.51898693,111740.0,111730.0,0.00108949]
[1760536944512,0.51898693,111740.0,111730.0,0.11500949]
[1760536944728,0.51898693,111740.0,111730.0,8.949e-05]
[1760536944961,0.51898693,111740.0,111730.0,0.11500949]
[1760536945639,0.17898693,111740.0,111730.0,8.949e-05]
[1760536946113,0.17898693,111740.0,111730.0,0.11500949]
[1760536946340,0.51898693,111740.0,111730.0,0.11500949]